[Event "EICC 2025"]
[Site "Eforie-Nord"]
[Date "2025.03.15"]
[Round "1.32"]
[White "Bartel, Mateusz"]
[Black "Fiedorek, Michal"]
[Result "1/2-1/2"]
[Annotator "TA"]
[ECO "D35"]
[WhiteElo "2621"]
[BlackElo "2295"]
[PlyCount "83"]
[EventDate "2025.03.14"]
[EventType "swiss"]
[EventCountry "ROU"]
[SourceTitle "playchess.com"]
[Source "ChessBase"]
[SourceQuality "1"]
[TimeControl "40/5400+30:1800+30"]

{[%evp 11,83,-17,7,-14,-14,-16,-18,-13,-4,-4,0,13,61,56,63,59,79,66,75,79,69,56,98,70,85,46,68,60,72,43,54,49,40,50,49,41,40,46,48,39,46,39,52,5,11,3,3,6,4,6,5,0,0,0,2,0,0,0,0,0,0,0,0,0,0,0,0,0,0,0,0,0,0,0]} 1. d4 {[%emt 0:00:03]} d5 {[%emt 0:01:04]} 2. c4 {[%emt 0:00:10]} e6 {[%emt 0:00:04]} 3. Nf3 {[%emt 0:00:57]} Nf6 {[%emt 0:00:09]} 4. cxd5 {[%emt 0:00:06]} exd5 {[%emt 0:00:21]} 5. Nc3 {[%emt 0:00:06]} c6 {[%emt 0:03:23]} 6. Qc2 {[%emt 0:01:02]} g6 {[%emt 0:09:42]} 7. h3 {[%emt 0:01:13] D35: Queen's Gambit Declined: Exchange Variation.} Bf5 {[%emt 0:02:40]} 8. Qb3 {[%emt 0:00:02]} Qb6 {[%emt 0:02:06]} 9. g4 {[%emt 0:03:32][%cal Bg2g4,Bg4g5][%mdl 32]} Qxb3 {[%emt 0:04:48]} 10. axb3 {[%emt 0:00:04]} Be4 {[%emt 0:15:23]} 11. Bg2 {[%emt 0:01:46][%cal Bf1g2,Bg2f3,Bf3g4][%mdl 32]} Bd6 $146 {[%emt 0:04:54]} (11... Na6 $11) (11... Nbd7 12. g5 Bxf3 13. Bxf3 Ng8 14. Bf4 Ne7 15. e3 Nf5 16. Bg4 Ng7 17. h4 Ne6 {½-½ Nogerbek,K (2527)-Xiong,J (2636) Wch Blitz New York 2024 (8)}) 12. g5 $14 {[%emt 0:03:08]} Bxf3 $1 {[%emt 0:01:51]} 13. Bxf3 {[%emt 0:00:12]} Nfd7 {[%emt 0:00:22]} 14. e4 {[%emt 0:01:51]} dxe4 {[%emt 0:02:09]} 15. Nxe4 {[%emt 0:00:14]} Bc7 {[%emt 0:03:04]} 16. O-O {[%emt 0:13:02]} O-O {[%emt 0:07:37]} 17. Bd2 {[%emt 0:00:07]} Na6 {[%emt 0:03:50]} 18. Bg4 {[%emt 0:12:48]} (18. Rfd1 {simplifies} f5 19. gxf6 Nxf6 20. Nxf6+ Rxf6 21. Be2) 18... Nb6 {[%emt 0:01:45]} 19. Nf6+ {[%emt 0:05:14][%csl Of6] Strong Square White (f6)} Kg7 {[%emt 0:00:43] [#]} 20. d5 $1 {[%emt 0:02:06] White is much more active.} Nxd5 {[%emt 0:03:29]} 21. Nxd5 {[%emt 0:01:48]} cxd5 {[%emt 0:00:03]} 22. Bc3+ {[%emt 0:00:07]} Kg8 {[%emt 0:00:08]} 23. Bf3 {[%emt 0:01:50]} Bb6 {[%emt 0:05:02]} 24. Bxd5 {[%emt 0:03:25]} Rad8 {[%emt 0:03:27]} 25. Rad1 {[%emt 0:02:18][%cal Ob3b4]} Nc5 {[%emt 0:14:10]} 26. Rfe1 {[%emt 0:19:54]} Rd7 {[%emt 0:03:48][%cal Oc5e6]} 27. b4 {[%emt 0:02:29]} (27. Kf1 $14 {was preferable.}) 27... Ne6 $1 $11 {[%emt 0:05:10] The position is equal.} 28. Bxe6 {[%emt 0:04:43] A strong pair of Bishops.} Rxd1 {[%emt 0:00:07]} 29. Rxd1 {[%emt 0:00:04]} fxe6 {[%emt 0:00:05][%mdl 4096] Endgame KRB-KRB} 30. Bf6 {[%emt 0:00:05]} h6 {[%emt 0:02:32] [#] Hoping for ...hxg5.} 31. h4 {[%emt 0:00:35]} hxg5 {[%emt 0:00:02]} 32. hxg5 {[%emt 0:00:06]} Rc8 {[%emt 0:00:16]} 33. Rd3 {[%emt 0:03:41]} Rc2 {[%emt 0:01:14]} 34. Rf3 {[%emt 0:01:59]} Rd2 {[%emt 0:01:17]} 35. Kf1 {[%emt 0:01:38]} Bd8 {[%emt 0:00:39]} 36. Ke1 {[%emt 0:03:55]} Rd5 {[%emt 0:00:08]} 37. Bxd8 {[%emt 0:00:11]} Rxd8 {[%emt 0:00:01]} 38. Rf6 {[%emt 0:00:06][%csl LRe6,LRg6]} Rd4 {[%emt 0:00:56]} 39. b5 {[%emt 0:02:38][%cal Bb4b5,Bb5b6][%mdl 32]} (39. Rxe6 Kf7 40. Rf6+ Kg7 $11) 39... Rb4 {[%emt 0:00:37][%csl LRb2,LRb5]} 40. Rxe6 {[%emt 0:01:40]} (40. Rxg6+ Kf7 41. Rf6+ Ke7) 40... Kf7 {[%emt 0:00:28]} 41. Rf6+ {[%emt 0:30:55]} Kg7 {[%emt 0:30:34]} 42. b6 $1 {[%emt 0:00:08] Weighted Error Value: White=0.07 (flawless) /Black=0.06 (flawless)   Mistake:       	White=1     	Black=1      Inaccurate:     	White=2     	Black=1      OK:         	White=12    	Black=16     Best:        	White=4     	Black=3      Strong:       	White=1     	Black=2} 1/2-1/2

[Event "EICC 2025"]
[Site "Eforie-Nord"]
[Date "2025.03.15"]
[Round "1.32"]
[White "Cosman, Andreea-Marioara"]
[Black "Alonso Rosell, Alvar"]
[Result "0-1"]
[Annotator "ChessBase"]
[ECO "A21"]
[WhiteElo "2192"]
[BlackElo "2535"]
[PlyCount "61"]
[EventDate "2025.03.14"]
[EventType "swiss"]
[EventCountry "ROU"]
[SourceTitle "playchess.com"]
[Source "ChessBase"]
[SourceQuality "1"]
[TimeControl "40/5400+30:1800+30"]

1. c4 {[%emt 0:00:03]} e5 {[%emt 0:02:27]} 2. Nc3 {[%emt 0:00:15]} d6 {[%emt 0:01:50]} 3. Nf3 {[%emt 0:02:10]} f5 {[%emt 0:01:17]} 4. g3 {[%emt 0:00:07]} Be7 {[%emt 0:00:57]} 5. Bg2 {[%emt 0:02:45]} Nf6 {[%emt 0:00:39]} 6. d4 {[%emt 0:06:51]} e4 {[%emt 0:08:00]} 7. Ng5 {[%emt 0:00:28]} c6 {[%emt 0:05:09]} 8. d5 {[%emt 0:10:03]} Na6 {[%emt 0:04:37]} 9. f3 {[%emt 0:13:21]} Qb6 {[%emt 0:24:56]} 10. a3 {[%emt 0:13:20]} h6 {[%emt 0:10:49]} 11. Nh3 {[%emt 0:04:15]} Nc5 {[%emt 0:03:29]} 12. b4 {[%emt 0:07:02]} Ncd7 {[%emt 0:00:14]} 13. Nf4 {[%emt 0:12:11]} Ne5 {[%emt 0:07:04]} 14. c5 {[%emt 0:01:36]} Qc7 {[%emt 0:06:10]} 15. cxd6 {[%emt 0:04:19]} Bxd6 {[%emt 0:01:31]} 16. fxe4 {[%emt 0:01:41]} O-O {[%emt 0:00:58]} 17. dxc6 {[%emt 0:02:49]} bxc6 {[%emt 0:00:32]} 18. Qb3+ {[%emt 0:03:59]} Kh7 {[%emt 0:04:29]} 19. Bd2 {[%emt 0:01:15]} a5 {[%emt 0:01:35]} 20. b5 {[%emt 0:03:00]} a4 {[%emt 0:03:00]} 21. Qa2 {[%emt 0:01:25]} Qb6 {[%emt 0:02:56]} 22. Ne6 {[%emt 0:03:18]} Bxe6 {[%emt 0:01:34]} 23. Qxe6 {[%emt 0:00:06]} cxb5 {[%emt 0:01:27]} 24. Rf1 {[%emt 0:03:36]} Nf3+ {[%emt 0:04:38]} 25. Rxf3 {[%emt 0:01:56]} Bxg3+ {[%emt 0:00:08]} 26. Rxg3 {[%emt 0:00:07]} Qxe6 {[%emt 0:00:05]} 27. exf5 {[%emt 0:00:07]} Qxf5 {[%emt 0:00:22]} 28. Bxa8 {[%emt 0:00:24]} Rxa8 {[%emt 0:00:17]} 29. Rb1 {[%emt 0:01:51]} Rb8 {[%emt 0:02:47]} 30. Rb4 {[%emt 0:00:16]} Qc5 {[%emt 0:00:59]} 31. Nxa4 {[%emt 0:00:00]} 0-1

[Event "EICC 2025"]
[Site "Eforie-Nord"]
[Date "2025.03.15"]
[Round "1.33"]
[White "Keinanen, Toivo"]
[Black "Kanyamarala, Trisha"]
[Result "1/2-1/2"]
[Annotator "ChessBase"]
[ECO "D02"]
[WhiteElo "2535"]
[BlackElo "2190"]
[PlyCount "139"]
[EventDate "2025.03.14"]
[EventType "swiss"]
[EventCountry "ROU"]
[SourceTitle "playchess.com"]
[Source "ChessBase"]
[SourceQuality "1"]
[TimeControl "40/5400+30:1800+30"]

1. Nf3 {[%emt 0:00:03]} d5 {[%emt 0:00:13]} 2. g3 {[%emt 0:00:02]} Nc6 {[%emt 0:00:16]} 3. d4 {[%emt 0:01:40]} Bf5 {[%emt 0:00:10]} 4. Bg2 {[%emt 0:01:32]} Nb4 {[%emt 0:00:24]} 5. Na3 {[%emt 0:00:05]} e6 {[%emt 0:00:24]} 6. O-O {[%emt 0:02:14]} Be7 {[%emt 0:00:21]} 7. c3 {[%emt 0:02:14]} Nc6 {[%emt 0:00:17]} 8. Qa4 {[%emt 0:00:16]} Qd7 {[%emt 0:00:32]} 9. Nb5 {[%emt 0:00:03]} Rc8 {[%emt 0:26:31]} 10. c4 {[%emt 0:02:42]} a6 {[%emt 0:07:57]} 11. Nc3 {[%emt 0:10:21]} Nf6 {[%emt 0:03:34]} 12. Bg5 {[%emt 0:15:35]} h6 {[%emt 0:12:04]} 13. Bxf6 {[%emt 0:07:12]} Bxf6 {[%emt 0:01:08]} 14. cxd5 {[%emt 0:04:29]} exd5 {[%emt 0:00:39]} 15. Qb3 {[%emt 0:02:27]} Be4 {[%emt 0:26:47]} 16. e3 {[%emt 0:10:32]} Bd3 {[%emt 0:08:27]} 17. Nxd5 {[%emt 0:09:03]} Bxf1 {[%emt 0:00:26]} 18. Nxf6+ {[%emt 0:00:02]} gxf6 {[%emt 0:00:10]} 19. Rxf1 {[%emt 0:00:08]} Rb8 {[%emt 0:02:52]} 20. Rc1 {[%emt 0:01:19]} O-O {[%emt 0:01:46]} 21. Rc5 {[%emt 0:00:48]} Ne7 {[%emt 0:00:53]} 22. Rh5 {[%emt 0:04:21]} Kg7 {[%emt 0:00:09]} 23. Bh3 {[%emt 0:00:31]} Qc6 {[%emt 0:00:33]} 24. Nh4 {[%emt 0:00:34]} Qc1+ {[%emt 0:00:47]} 25. Bf1 {[%emt 0:00:28]} b6 {[%emt 0:01:39]} 26. Kg2 {[%emt 0:08:32]} Qc6+ {[%emt 0:01:03]} 27. d5 {[%emt 0:02:10]} Qd7 {[%emt 0:00:21]} 28. Be2 {[%emt 0:01:47]} c6 {[%emt 0:00:45]} 29. Qa3 {[%emt 0:01:29]} Rfd8 {[%emt 0:02:02]} 30. dxc6 {[%emt 0:01:54]} Qxc6+ {[%emt 0:00:07]} 31. Bf3 {[%emt 0:00:02]} Qd6 {[%emt 0:00:48]} 32. Qxa6 {[%emt 0:01:17]} Rbc8 {[%emt 0:00:11]} 33. Qb7 {[%emt 0:10:23]} Rc5 {[%emt 0:01:26]} 34. Rxc5 {[%emt 0:00:20]} Qxc5 {[%emt 0:00:13]} 35. Qxe7 {[%emt 0:00:52]} Qxe7 {[%emt 0:00:06]} 36. Nf5+ {[%emt 0:00:00]} Kf8 {[%emt 0:00:08]} 37. Nxe7 {[%emt 0:00:01]} Kxe7 {[%emt 0:00:06]} 38. a4 {[%emt 0:01:09]} Rd2 {[%emt 0:00:53]} 39. b3 {[%emt 0:00:50]} Rd3 {[%emt 0:01:17]} 40. b4 {[%emt 0:00:04]} Rb3 {[%emt 0:01:07]} 41. b5 {[%emt 0:12:15]} Rb1 {[%emt 0:02:34]} 42. Be4 {[%emt 0:05:14]} Rc1 {[%emt 0:02:30]} 43. Bd5 {[%emt 0:02:58]} Ra1 {[%emt 0:01:31]} 44. Bb3 {[%emt 0:01:00]} Rb1 {[%emt 0:00:25]} 45. Bc2 {[%emt 0:00:29]} Rb2 {[%emt 0:00:45]} 46. Bd1 {[%emt 0:00:09]} Kd6 {[%emt 0:00:18]} 47. Bh5 {[%emt 0:01:08]} Ke6 {[%emt 0:01:57]} 48. h4 {[%emt 0:01:00]} f5 {[%emt 0:02:47]} 49. Bd1 {[%emt 0:03:42]} Kd5 {[%emt 0:01:09]} 50. Bf3+ {[%emt 0:01:43]} Ke5 {[%emt 0:05:04]} 51. Bd1 {[%emt 0:01:12]} Ke4 {[%emt 0:01:12]} 52. Bf3+ {[%emt 0:00:24]} Ke5 {[%emt 0:02:35]} 53. Bd1 {[%emt 0:00:01]} f6 {[%emt 0:01:00]} 54. Kf3 {[%emt 0:01:27]} Kd5 {[%emt 0:01:45]} 55. Be2 {[%emt 0:04:02]} Rd2 {[%emt 0:00:59]} 56. Bf1 {[%emt 0:00:22]} Ra2 {[%emt 0:03:36]} 57. Bd3 {[%emt 0:01:17]} Ke5 {[%emt 0:00:08]} 58. Kg2 {[%emt 0:00:51]} Rb2 {[%emt 0:03:40]} 59. Kf3 {[%emt 0:00:42]} Rd2 {[%emt 0:02:16]} 60. Bb1 {[%emt 0:00:31]} Rd1 {[%emt 0:01:28]} 61. Bc2 {[%emt 0:00:17]} Rd2 {[%emt 0:02:03]} 62. Bb1 {[%emt 0:00:01]} Ke6 {[%emt 0:00:50]} 63. Kg2 {[%emt 0:00:32]} Rb2 {[%emt 0:00:54]} 64. Bd3 {[%emt 0:00:00]} Rd2 {[%emt 0:00:40]} 65. Bb1 {[%emt 0:00:02]} Ke5 {[%emt 0:00:30]} 66. Kf3 {[%emt 0:00:01]} Rb2 {[%emt 0:00:18]} 67. Bd3 {[%emt 0:00:01]} Ra2 {[%emt 0:00:50]} 68. Kg2 {[%emt 0:00:01]} Ra3 {[%emt 0:00:41]} 69. Bc2 {[%emt 0:01:09]} Ra2 {[%emt 0:00:30]} 70. Bd3 1/2-1/2

[Event "EICC 2025"]
[Site "Eforie-Nord"]
[Date "2025.03.15"]
[Round "1.33"]
[White "Nastore, Pavel-Alexandru"]
[Black "Tari, Aryan"]
[Result "0-1"]
[Annotator "TA"]
[ECO "B32"]
[WhiteElo "2295"]
[BlackElo "2621"]
[PlyCount "66"]
[EventDate "2025.03.14"]
[EventType "swiss"]
[EventCountry "ROU"]
[SourceTitle "playchess.com"]
[Source "ChessBase"]
[SourceQuality "1"]
[TimeControl "40/5400+30:1800+30"]

{[%evp 14,66,31,19,35,28,27,26,15,27,25,0,1,0,24,-5,37,22,50,40,45,44,19,-39,-33,-75,0,-108,-89,-109,-102,-326,-177,-212,-149,-157,-125,-181,-178,-268,-117,-155,-145,-334,-329,-358,-360,-500,-495,-469,-312,-730,-706,-806,-790]} 1. e4 {[%emt 0:00:15]} c5 {[%emt 0:00:19]} 2. Nf3 {[%emt 0:00:08]} Nc6 {[%emt 0:00:12]} 3. d4 {[%emt 0:00:29]} cxd4 {[%emt 0:00:07]} 4. Nxd4 {[%emt 0:00:05]} e5 {[%emt 0:00:15]} 5. Nb5 {[%emt 0:01:46]} d6 {[%emt 0:00:10]} 6. N1c3 {[%emt 0:02:37]} a6 {[%emt 0:00:16]} 7. Na3 {[%emt 0:00:05]} Be6 $1 {[%emt 0:00:13][%mdl 4] now scores much better than the old 7...b5.} 8. Nc4 {[%emt 0:02:18]} Rb8 {[%emt 0:00:48] B32: Sicilian: Löwenthal and Kalashnikov Variations.} 9. Nd5 {[%emt 0:03:53]} Bxd5 {[%emt 0:00:39]} 10. exd5 {[%emt 0:00:07]} Nce7 {[%emt 0:00:04] White has an edge.} 11. a4 {[%emt 0:00:33][%cal Ba2a4,Ba4a5][%mdl 32]} Nf6 {[%emt 0:00:10][%cal Bg8f6,Bf6d5,Bd5f4,Bf4d3][%mdl 32]} 12. g4 {[%emt 0:00:13]} h6 {[%emt 0:00:05]} 13. h4 {[%emt 0:35:27]} Rc8 {[%emt 0:00:17]} 14. c3 $146 {[%emt 0:03:55]} (14. Ne3 Ng6 15. c4 Nf4 16. a5 Be7 17. Bd3 Nd7 18. Bb1 Kf8 19. h5 Bg5 20. b4 {0-1 Brunello,M (2343)-Sebenik,M (2531) AUT-chT 2324 2023 (5.5)}) 14... Nfxd5 {[%emt 0:32:11]} 15. a5 {[%emt 0:17:18] White sacrificed a pawn} g6 {[%emt 0:13:35]} 16. Qa4+ {[%emt 0:07:02]} Rc6 {[%emt 0:01:40]} 17. Bg2 {[%emt 0:01:13]} Bg7 {[%emt 0:00:35]} 18. Ne3 {[%emt 0:03:29] [#]} (18. h5 $11) 18... Nf4 $1 $15 {[%emt 0:00:35]} 19. Bxc6+ {[%emt 0:00:07]} bxc6 {[%emt 0:00:10]} (19... Nxc6 $17 20. Qd1 d5 (20... Nxa5 21. Nd5 $14)) 20. Nc4 {[%emt 0:13:40]} (20. Qd1 $11 {remains equal.}) 20... Nd3+ $17 {[%emt 0:00:44][%mdl 1024] Black has strong compensation.} 21. Ke2 {[%emt 0:00:30]} e4 {[%emt 0:00:46][%csl Od3] Strong Square Black (d3). Black has a king side majority} 22. Qa3 $2 {[%emt 0:02:23]} (22. Nb6 $17 d5 23. Rd1) 22... Nc8 {[%emt 0:02:01] A dynamic duo of knights.} (22... d5 $142 23. Nb6 f5) 23. Be3 {[%emt 0:03:03]} Qf6 {[%emt 0:01:43]} 24. Nd2 {[%emt 0:00:48]} Qe6 {[%emt 0:05:45] Black is more active.} 25. f3 {[%emt 0:00:09] [#]} (25. Rhg1 $17) 25... Ne5 $1 $19 {[%emt 0:02:17]} 26. Qa4 {[%emt 0:01:25] [#]} (26. Raf1 $142) 26... d5 {[%emt 0:03:42]} (26... exf3+ $1 $19 {and Black stays clearly on top.} 27. Nxf3 Nxg4) 27. Rae1 {[%emt 0:00:31]} O-O {[%emt 0:00:12]} 28. Bd4 $2 {[%emt 0:00:20]} (28. Kd1 $17) 28... exf3+ {[%emt 0:02:24]} 29. Kd1 {[%emt 0:00:34] and Bxe5 would now be decisive} Qxg4 {[%emt 0:00:05]} 30. Reg1 {[%emt 0:00:34]} Qf4 {[%emt 0:00:08] ...c5 would now be deadly.} 31. Qc2 {[%emt 0:00:17]} Ng4 {[%emt 0:00:55]} 32. Kc1 $2 {[%emt 0:00:19]} (32. Qd3 Bxd4 33. Qxd4 Ne3+ (33... Qxd4 $2 34. cxd4 Nf2+ 35. Kc2 $19) 34. Kc1 Qxd4 35. cxd4) 32... Bxd4 {[%emt 0:00:43]} 33. cxd4 {[%emt 0:00:05]} f2 {[%emt 0:00:06] Weighted Error Value: White=0.81/Black=0.34  Loses game:     	White=2     	---        Mistake:       	White=5     	Black=3      Inaccurate:     	White=3     	Black=3      OK:         	White=8     	Black=11     Best:        	White=1     	Black=3      Strong:       	---       	Black=1} 0-1

[Event "EICC 2025"]
[Site "Eforie-Nord"]
[Date "2025.03.15"]
[Round "1.34"]
[White "Gurel, Ediz"]
[Black "Petrovic, Aleksa"]
[Result "1-0"]
[Annotator "TA"]
[ECO "C42"]
[WhiteElo "2620"]
[BlackElo "2294"]
[PlyCount "207"]
[EventDate "2025.03.14"]
[EventType "swiss"]
[EventCountry "ROU"]
[SourceTitle "playchess.com"]
[Source "ChessBase"]
[SourceQuality "1"]
[TimeControl "40/5400+30:1800+30"]

{[%evp 12,207,44,45,77,66,39,39,43,48,58,52,44,51,44,48,83,81,82,76,101,58,68,49,93,93,93,93,108,100,93,93,89,80,93,93,93,93,99,98,103,100,100,93,93,88,97,97,95,90,92,58,79,68,72,65,79,58,60,65,62,62,72,58,50,50,50,50,50,66,66,47,76,72,62,70,114,67,114,146,143,116,116,114,131,120,116,116,121,121,121,121,232,121,125,121,125,145,147,155,206,125,190,0,153,8,8,8,189,8,8,0,191,161,150,16,30,8,8,8,8,8,8,0,8,0,8,8,8,11,13,8,50,8,8,8,190,8,8,8,8,8,107,8,8,8,8,8,8,8,8,8,8,8,8,8,8,8,8,8,8,8,8,8,8,8,8,8,8,0,8,0,8,0,8,0,8,8,8,8,8,8,8,9,112,112,128,116,129,131,131,152,5409,5405,5393,5002,5401,5401]} 1. e4 {[%emt 0:00:03]} e5 {[%emt 0:00:35]} 2. Nf3 {[%emt 0:00:08]} Nf6 {[%emt 0:00:25]} 3. Nxe5 {[%emt 0:00:21]} Nxe4 {[%emt 0:00:41]} 4. Qe2 {[%emt 0:00:33]} Qe7 {[%emt 0:00:06]} 5. Qxe4 {[%emt 0:00:05]} d6 {[%emt 0:00:04]} 6. d4 {[%emt 0:00:04]} dxe5 {[%emt 0:00:03]} 7. dxe5 {[%emt 0:00:06]} Nc6 {[%emt 0:00:04][%cal Bb8c6,Bc6e5,Be5g4,Bg4f6,Bf6e8][%mdl 32] C42: Petroff Defence: 3 Nxe5 and unusual White 3rd moves.} 8. Nc3 {[%emt 0:00:11]} Qxe5 {[%emt 0:00:05]} 9. Qxe5+ {[%emt 0:00:04]} Nxe5 {[%emt 0:00:07] White is slightly better.} 10. Nb5 {[%emt 0:00:05]} Bb4+ {[%emt 0:00:05]} 11. Bd2 $1 {[%emt 0:00:04]} Bxd2+ {[%emt 0:00:05]} 12. Kxd2 {[%emt 0:00:03]} Kd8 {[%emt 0:00:07]} 13. Re1 {[%emt 0:00:08][%cal Ba1e1,Be1d1,Bd1d2][%mdl 32]} Ng4 $146 {[%emt 0:01:41]} ({Predecessor:} 13... Ng6 14. g3 a6 15. Nc3 Bf5 16. Bd3 {½-½ Sethuraman,S (2586)-Bai,J (2551) Hong Kong op 2024 (8)}) 14. f3 {[%emt 0:05:15]} Nf6 {[%emt 0:00:06]} 15. Bc4 {[%emt 0:01:25]} Rf8 {[%emt 0:00:53]} 16. a4 {[%emt 0:04:42]} Ne8 {[%emt 0:10:53]} 17. Kc1 {[%emt 0:04:43] White is much more active.} c6 {[%emt 0:06:10]} 18. Rd1+ $1 {[%emt 0:01:24]} Bd7 {[%emt 0:01:02] [#]} 19. Rd2 $1 {[%emt 0:08:40][%cal Oh1d1]} Kc8 {[%emt 0:19:49]} (19... cxb5 $2 20. Bxb5 Nf6 21. Bxd7 $18 (21. Rhd1 Ke7 $18)) 20. Nc3 {[%emt 0:05:15]} Nf6 {[%emt 0:04:50]} 21. Re2 {[%emt 0:07:18]} Kc7 {[%emt 0:12:18]} 22. Re7 {[%emt 0:00:19]} Rae8 {[%emt 0:00:12]} 23. Rxf7 {[%emt 0:00:18]} Rxf7 {[%emt 0:00:12]} 24. Bxf7 {[%emt 0:00:05]} Re7 {[%emt 0:02:37]} 25. Bc4 {[%emt 0:00:06]} g5 {[%emt 0:00:19]} 26. Bd3 {[%emt 0:04:37]} h5 {[%emt 0:07:10]} 27. Kd2 {[%emt 0:02:37]} h4 {[%emt 0:05:19]} 28. Re1 {[%emt 0:01:11]} Rxe1 {[%emt 0:05:52]} 29. Kxe1 $16 {[%emt 0:00:03][%mdl 4096] Endgame KBN-KBN. White is a pawn up.} Kd6 {[%emt 0:00:42]} 30. Kf2 {[%emt 0:02:46]} Ke5 {[%emt 0:01:36]} 31. Be4 {[%emt 0:06:51]} g4 {[%emt 0:06:53]} 32. Ke3 {[%emt 0:00:30]} gxf3 {[%emt 0:04:18]} 33. gxf3 {[%emt 0:00:31]} a5 {[%emt 0:02:44]} 34. Nd1 {[%emt 0:11:35]} Nd5+ {[%emt 0:04:47]} 35. Kd2 {[%emt 0:04:48]} Nf6 {[%emt 0:01:00]} 36. Nf2 {[%emt 0:00:45]} Nxe4+ {[%emt 0:00:35]} 37. fxe4 $14 {[%emt 0:00:41] KB-KN. White is a pawn up.} c5 {[%emt 0:02:17]} 38. Nd3+ {[%emt 0:01:53]} Kd6 $1 {[%emt 0:00:03]} 39. b3 {[%emt 0:03:34]} c4 $1 {[%emt 0:00:16]} 40. Nb2 {[%emt 0:06:51]} cxb3 {[%emt 0:00:45]} 41. cxb3 {[%emt 0:30:21]} Kc5 {[%emt 0:07:12]} 42. Kc3 {[%emt 0:00:00]} b5 {[%emt 0:00:47]} 43. axb5 {[%emt 0:00:00]} Bxb5 {[%emt 0:00:07]} 44. Na4+ {[%emt 0:00:00]} (44. Nd3+ $16 Kc6 45. Kd4) 44... Kd6 {[%emt 0:00:24]} (44... Kc6 $14) 45. Kd4 $16 {[%emt 0:00:00]} Be8 {[%emt 0:00:40]} 46. Nb6 {[%emt 0:00:00]} Ke6 {[%emt 0:00:51]} 47. Nc4 {[%emt 0:00:00]} a4 {[%emt 0:00:10]} 48. b4 {[%emt 0:00:00][%cal Bb3b4,Bb4b5,Bb5b6][%mdl 32]} Bc6 {[%emt 0:00:32]} 49. Na3 {[%emt 0:00:00]} Bd7 {[%emt 0:00:16]} 50. b5 {[%emt 0:00:00]} Bc8 {[%emt 0:00:15]} 51. Nc4 {[%emt 0:00:00]} Bb7 {[%emt 0:00:25]} (51... Bd7 $16 {is a better defense.}) 52. e5 {[%emt 0:00:00]} (52. Na5 $1 $18 {[%cal Ra5b7]} Ba8 53. b6) 52... h3 {[%emt 0:00:42]} 53. b6 {[%emt 0:03:36]} Bh1 {[%emt 0:00:57]} 54. Kc3 {[%emt 0:02:29]} Bg2 {[%emt 0:01:33]} 55. Kb4 {[%emt 0:00:31]} Bc6 {[%emt 0:00:36]} 56. Kc5 {[%emt 0:03:09]} Bd5 {[%emt 0:00:45]} (56... Bb7 $16 57. Kb4 Bc6) 57. Kd4 $2 {[%emt 0:01:06]} (57. Kb5 $1 $18 {[%cal Rb5a4]}) 57... Bg2 $2 {[%emt 0:00:49]} ({Better is} 57... Bh1 $1 $11) 58. Na3 {[%emt 0:00:30]} (58. Kc3 $1 $16) 58... Bh1 $11 {[%emt 0:04:16]} 59. Nb5 {[%emt 0:00:36]} Bc6 $2 {[%emt 0:02:33]} (59... Bg2 $11) 60. Kc5 $2 {[%emt 0:02:03]} (60. Nc7+ $1 $18 Kd7 61. Kc3) 60... Bb7 $1 {[%emt 0:01:02]} 61. Kd4 $2 {[%emt 0:00:15]} (61. Kb4 $11) 61... Bc6 $18 {[%emt 0:00:14]} 62. Nc7+ $1 {[%emt 0:00:53]} Kd7 {[%emt 0:00:09]} 63. Kc5 {[%emt 0:02:38]} (63. Na6 $1 $16 {[%cal Ra6b8] Threatens to win with Nb8+.} a3 64. Nc5+ (64. Nb8+ Ke6 $15) 64... Ke7 65. Kc3) 63... Bb7 $11 {[%emt 0:02:46]} 64. e6+ {[%emt 0:01:43]} Ke7 {[%emt 0:00:05]} 65. Kb4 {[%emt 0:00:03]} Bc6 $1 {[%emt 0:00:04]} 66. Ka3 {[%emt 0:00:21]} Kd6 {[%emt 0:00:12]} 67. Kb4 {[%emt 0:00:39]} Ke7 $1 {[%emt 0:00:05]} 68. Kc5 {[%emt 0:01:16]} Bb7 {[%emt 0:00:10]} 69. Kc4 {[%emt 0:00:06]} (69. Kb4 Bc6 $16) 69... Bc6 {[%emt 0:00:59]} 70. Kb4 {[%emt 0:00:08]} Kd6 {[%emt 0:01:32]} 71. Nb5+ {[%emt 0:01:26]} Kxe6 {[%emt 0:00:04]} 72. Kxa4 {[%emt 0:00:03]} Ke5 $1 {[%emt 0:01:49]} 73. Kb4 {[%emt 0:00:08] next Nc3 is good for White.} Kf4 $2 {[%emt 0:01:31]} (73... Ba8 $1 $11) 74. Kc5 $2 {[%emt 0:00:19]} (74. Ka5 $18) 74... Ba8 {[%emt 0:00:06]} 75. Nc7 {[%emt 0:00:50]} Bb7 $1 {[%emt 0:00:25]} 76. Ne6+ {[%emt 0:00:17]} Kf3 $1 {[%emt 0:00:12] [#]} 77. Kd4 {[%emt 0:00:04]} ({White should try} 77. Kd6 $1 $16 {[%cal Rd6c7]}) 77... Kg2 {[%emt 0:01:04]} 78. Ke3 {[%emt 0:00:04]} Kxh2 {[%emt 0:00:19] Strongly threatening ...Kg3.} 79. Kf2 {[%emt 0:00:01]} Ba8 {[%emt 0:01:48]} 80. Nd4 {[%emt 0:00:27]} Bb7 {[%emt 0:00:39]} 81. Nf5 {[%emt 0:00:17]} Ba8 {[%emt 0:00:24]} 82. Ne3 {[%emt 0:00:05]} Bb7 {[%emt 0:00:45]} 83. Ng4+ {[%emt 0:00:36]} Kh1 {[%emt 0:00:02]} 84. Ne5 {[%emt 0:00:19]} Kh2 {[%emt 0:00:07]} 85. Nd3 {[%emt 0:00:14]} Ba8 {[%emt 0:00:39]} 86. Nc1 {[%emt 0:00:13]} Bb7 {[%emt 0:00:09]} 87. Ne2 {[%emt 0:00:10]} Ba8 {[%emt 0:00:04]} 88. Nf4 {[%emt 0:00:11]} Bb7 {[%emt 0:00:05]} 89. Ng6 {[%emt 0:00:04]} Ba8 {[%emt 0:00:05]} 90. Ne5 {[%emt 0:00:04]} Bb7 {[%emt 0:00:06]} 91. Ng4+ {[%emt 0:00:05]} Kh1 {[%emt 0:00:05]} 92. Ne3 {[%emt 0:00:12]} Kh2 {[%emt 0:00:05]} 93. Ng4+ {[%emt 0:00:03]} Kh1 {[%emt 0:00:04]} 94. Kg3 {[%emt 0:00:02]} Kg1 {[%emt 0:00:41] Dodges Nf2} 95. Kxh3 {[%emt 0:00:05]} (95. Nf2 $5) 95... Kf1 {[%emt 0:00:04]} 96. Kg3 {[%emt 0:00:05]} Ke2 {[%emt 0:00:05]} 97. Kf4 {[%emt 0:00:02]} Kd2 {[%emt 0:00:35] [#]} (97... Ba8 $11 {remains equal.}) 98. Ke5 $1 $16 {[%emt 0:00:25]} Ke1 {[%emt 0:00:07]} 99. Kd6 {[%emt 0:00:07]} Kd2 {[%emt 0:00:05]} 100. Ne5 {[%emt 0:00:23]} Ke1 {[%emt 0:00:08]} 101. Nc6 {[%emt 0:01:12]} Kf1 $2 {[%emt 0:00:08]} (101... Kd2 $16) 102. Kc7 $18 {[%emt 0:00:13] White is clearly winning.} Ba8 {[%emt 0:00:01]} 103. Nd8 {[%emt 0:00:42] Intending Nb7 and mate.} Kg1 {[%emt 0:00:08]} 104. Nb7 {[%emt 0:00:07] Weighted Error Value: White=0.25 (precise) /Black=0.19 (very precise)   Loses game:     	---       	Black=3      Missed win:     	White=3     	---        Mistake:       	White=6     	Black=5      Inaccurate:     	White=4     	Black=4      OK:         	White=34    	Black=44     Best:        	White=5     	Black=3      Strong:       	White=4     	Black=8} 1-0